Cogmind - Beta 16 @@@ ROGUE MODE // 2025.12.20 @ 13:57:03 Player: TheGamingJasper Result: Destroyed by H-88 Terminator with KE Penetrator Performance ------------- Evolutions (8) 4000 Regions Visited (15) 3000 Robots Destroyed (83) 415 Value Destroyed (2634) 2634 Prototype IDs (5) 100 Alien Tech Used (0) 0 Bonus (185) 185 TOTAL SCORE: 10334 Bonus ------- High Alert Combat Kills 2 Follower Combat Kills 183 Cogmind --------- Core Integrity 0/1450 Matter 212/300 Energy 100/100 System Corruption 7% Temperature Cool (0) Movement Core (50) Location -2/Research Parts ------- > --- POWER (2) -------- (None) > --- PROPULSION (7) --- (None) > --- UTILITY (12) ----- Advanced Terrain Scan Processor Advanced Terrain Scan Processor Improved Melee Analysis Suite > --- WEAPON (2) ------- (None) > --- INVENTORY (5) ---- Quantum Reactor Tesla Rifle Enhanced Quantum Rifle Peak State ------------ > --- POWER ------------ Micro Fission Core > --- PROPULSION ------- Nuclear Pulse Array Cooled Field Propulsion Drive Q-thruster Impulse Thruster Array > --- UTILITY ---------- Improved Cooling System Advanced Terrain Scan Processor Advanced Terrain Scan Processor Advanced Point Defense System Hacking Suite Hacking Suite Hacking Suite System Shield > --- WEAPON ----------- Wave Gun > --- INVENTORY -------- Improved Gyrokinetic Inverter Cooled Field Propulsion Drive Cooled Field Propulsion Drive Cooled Field Propulsion Drive [Rating: 91] Favorites ----------- Power Ion Engine Engine Ion Engine Power Core Light Nuclear Core Reactor Antimatter Reactor Propulsion Improved VTOL Module Leg Aluminum Leg Flight Unit Improved VTOL Module Utility Advanced Terrain Scan Processor Device Sensor Array Storage Medium Storage Unit Processor Advanced Terrain Scan Processor Hackware Hacking Suite Protection Improved Utility Shielding Weapon Advanced Beam Cannon Energy Gun Small Laser Energy Cannon Advanced Beam Cannon Ballistic Gun Hypervelocity Railgun Launcher Mini Grenade Launcher Special Weapon Remote Datajack Build | -11 -10 -10 -9 -9 -8 -8 -7 -6 -5 -5 -5 -4 -3 -3 -2 ------- Run | Yrd Mat Min Mat Min Mat Sto Fac Fac Fac Ext Cet Fac Res Arm Res Slots Evolved 16 | . . . 2 . 2 . 2 2 2 . . 2 2 . 2 Power 1 | . . . . . . . . . . . . . . . 1 Propulsion 5 | . . . 2 . . . . 1 . . . 1 . . 1 Utility 10 | . . . . . 2 . 2 1 2 . . 1 2 . . Weapon . | . . . . . . . . . . . . . . . . Parts Attached 112 | 6 9 . 9 . 17 11 18 6 2 10 . 3 6 12 3 Power 16 | 1 1 . . . 2 1 4 2 . 1 . . 1 3 . Engine 5 | 1 1 . . . 1 . 1 . . 1 . . . . . Core 8 | . . . . . 1 1 3 2 . . . . 1 . . Reactor 3 | . . . . . . . . . . . . . . 3 . Propulsion 43 | 2 3 . 5 . 7 7 2 2 . 3 . 1 3 8 . Treads . | . . . . . . . . . . . . . . . . Leg 20 | 2 3 . 5 . 7 3 . . . . . . . . . Wheel . | . . . . . . . . . . . . . . . . Hover . | . . . . . . . . . . . . . . . . Flight 23 | . . . . . . 4 2 2 . 3 . 1 3 8 . Utility 32 | 1 3 . . . 5 1 8 1 2 6 . 2 1 . 2 Device 15 | . 2 . . . 2 1 4 1 . 3 . . 1 . 1 Storage 2 | 1 1 . . . . . . . . . . . . . . Processor 9 | . . . . . 3 . 2 . 1 2 . . . . 1 Hackware 5 | . . . . . . . 1 . 1 1 . 2 . . . Protection 1 | . . . . . . . 1 . . . . . . . . Artifact . | . . . . . . . . . . . . . . . . Weapon 21 | 2 2 . 4 . 3 2 4 1 . . . . 1 1 1 Energy Gun 11 | 2 2 . 2 . . . 3 . . . . . 1 . 1 Energy Cannon 6 | . . . 1 . 2 2 . 1 . . . . . . . Ballistic Gun 1 | . . . . . . . . . . . . . . 1 . Ballistic Cannon . | . . . . . . . . . . . . . . . . Launcher 2 | . . . 1 . 1 . . . . . . . . . . Special Weapon 1 | . . . . . . . 1 . . . . . . . . Impact Weapon . | . . . . . . . . . . . . . . . . Slashing Weapon . | . . . . . . . . . . . . . . . . Piercing Weapon . | . . . . . . . . . . . . . . . . Special Melee Weapon . | . . . . . . . . . . . . . . . . Unidentified Prototypes 5 | . . . 2 . . 1 . 1 . . . . . 1 . Parts Lost 78 | . 1 . 5 . 8 10 8 4 1 8 . 11 . 18 4 Power 13 | . . . . . 2 1 3 1 . 1 . 1 . 3 1 Propulsion 28 | . . . 1 . 3 4 . 1 . 3 . 6 . 7 3 Utility 21 | . 1 . . . 1 2 3 2 1 2 . 3 . 6 . Weapon 16 | . . . 4 . 2 3 2 . . 2 . 1 . 2 . Highest Loss Streak 11 | . 1 . 3 . 5 5 5 3 1 3 . 11 . 7 4 To Critical Strikes 1 | . . . . . 1 . . . . . . . . . . Average Backups 5 | 1 5 6 7 9 8 7 3 3 3 3 4 3 1 2 1 Power . | . . . . 1 . 1 . 1 1 . 1 1 . . . Propulsion . | . 1 2 . 1 . . . . . 1 2 1 1 2 . Utility 2 | . 2 4 5 6 4 4 1 1 1 . 1 1 . . . Weapon . | . . . . 1 1 1 1 1 1 . . . . . . Tool/Special . | . . . . . . . . . . . . . . . . Unused Backups 13 | . 1 . 1 . . 3 3 . . 1 . . 1 1 2 Power 3 | . . . . . . 1 . . . 1 . . . . 1 Propulsion 2 | . . . . . . . . . . . . . 1 1 . Utility 7 | . 1 . 1 . . 2 3 . . . . . . . . Weapon 1 | . . . . . . . . . . . . . . . 1 Tool/Special . | . . . . . . . . . . . . . . . . Average Slot Usage (%) 84 | . 95 100 96 100 96 95 84 76 76 74 88 78 51 51 30 Engine 4 | . 12 14 11 11 6 . 1 . . 1 5 4 . . . Core 3 | . . . . . 1 8 5 5 5 2 . . 3 1 . Leg 16 | . 28 28 43 44 34 16 . . . . . . . . . Flight 13 | . . . . . . 15 30 32 29 26 29 23 7 17 9 Device 10 | . 12 14 11 11 6 12 16 14 11 4 11 9 6 6 3 Storage 5 | . 14 14 11 11 9 5 . . . . . . . . . Processor 9 | . . . . . 19 18 9 6 6 15 17 14 9 9 11 Hackware 3 | . . . . . . . 2 6 9 12 17 19 19 10 . Energy Gun 9 | . 26 28 14 11 7 1 2 6 5 6 5 4 3 1 1 Energy Cannon 5 | . . . . 11 10 16 9 2 5 1 . . . . . Peak Build Rating 91 | 6 7 7 14 14 30 34 42 47 54 55 55 63 80 91 80 Average Rating 31 | 4 6 7 10 14 22 28 35 42 50 46 55 56 63 75 58 On Entrance 32 | . 6 7 7 14 14 30 30 38 47 50 55 55 22 80 63 Avg Prop Armor Cover (%) 7 | . . . . . 9 4 . . . . . . . . . Naked Turns . | . . . . . . . . . . . . . . . . Heaviest Build 25 | 13 18 18 23 23 25 24 19 21 21 19 19 19 16 20 23 Greatest Support 48 | 20 20 20 40 40 48 40 20 23 23 23 22 22 37 48 48 Greatest Overweight (x) 4 | . . . . . 1 4 . . . 1 . 2 . 2 1 Average Overweight (x) . | . . . . . . . . . . . . . . . . Largest Inventory Capacity 10 | 8 10 10 10 10 10 10 5 5 5 5 5 5 5 5 5 Average Capacity 7 | 7 8 10 10 10 10 7 5 5 5 5 5 5 5 5 5 Most Carried 10 | 5 8 6 10 10 10 10 5 5 5 5 4 5 5 5 3 Average Carried 5 | 1 5 6 7 9 8 7 3 3 3 3 4 3 1 2 1 Final Capacity 10 | 8 10 10 10 10 10 5 5 5 5 5 5 5 5 5 5 Final Carried 10 | 1 6 6 9 10 10 5 5 3 4 4 4 4 1 1 3 Class Distribution -------------------- 33% | Mutant 26% | Sprinter 19% | Scavenger-Mutant 17% | Hacker-Sprinter 3% | Hacker-Mutant Dominant Class ---------------- Mutant | -10/Materials Mutant | -10/Mines Scavenger-Mutant | -9/Materials Scavenger-Mutant | -9/Mines Mutant | -8/Materials Sprinter | -8/Storage Sprinter | -7/Factory Sprinter | -6/Factory Hacker-Sprinter | -5/Factory Hacker-Sprinter | -5/Extension Hacker-Sprinter | -5/Cetus Hacker-Sprinter | -4/Factory Hacker-Mutant | -3/Research Hacker-Sprinter | -3/Armory Mutant | -2/Research Resources | -11 -10 -10 -9 -9 -8 -8 -7 -6 -5 -5 -5 -4 -3 -3 -2 ----------- Run | Yrd Mat Min Mat Min Mat Sto Fac Fac Fac Ext Cet Fac Res Arm Res Matter Collected 1446 | 260 75 20 198 . 335 164 101 83 91 74 . . . 20 25 Remotely . | . . . . . . . . . . . . . . . . Salvage Created 2876 | . 290 . 446 . 607 739 308 83 . 383 . . . 20 . Parts 143 | . 16 . 34 . 27 30 22 2 . 12 . . . . . Haulers Intercepted 3 | . . . 1 . . 2 . . . . . . . . . Recyclers Shooed 4 | . . . 2 . 2 . . . . . . . . . . Parts Field Recycled . | . . . . . . . . . . . . . . . . Retrieved Matter . | . . . . . . . . . . . . . . . . Parts Self-Destructed . | . . . . . . . . . . . . . . . . Prevented . | . . . . . . . . . . . . . . . . Parts Restored . | . . . . . . . . . . . . . . . . Kills | -11 -10 -10 -9 -9 -8 -8 -7 -6 -5 -5 -5 -4 -3 -3 -2 ------- Run | Yrd Mat Min Mat Min Mat Sto Fac Fac Fac Ext Cet Fac Res Arm Res Combat Hostiles Destroyed 63 | . 9 . 8 . 14 12 8 4 . 7 . . . 1 . Guns 21 | . 9 . 2 . 2 . . 3 . 4 . . . 1 . Cannons 26 | . . . . . 7 11 7 1 . . . . . . . AOE 11 | . . . 6 . 4 . 1 . . . . . . . . Classes Destroyed 12 | . 2 . 6 . 1 1 . . . 1 . . . 1 . Worker 5 | . . . 2 . 1 1 1 . . . . . . . . Builder 4 | . . . 1 . 3 . . . . . . . . . . Hauler 3 | . . . 1 . . 2 . . . . . . . . . Recycler 4 | . . . 2 . 1 . 1 . . . . . . . . Mechanic 1 | . . . 1 . . . . . . . . . . . . Operator 2 | . . . . . . 1 . . . 1 . . . . . Swarmer 21 | . 3 . . . 2 . 8 4 . 4 . . . . . Saboteur 1 | . . . . . . . . . . . . . . 1 . Grunt 27 | . 6 . 7 . 7 6 . . . 1 . . . . . Sentry 9 | . . . 2 . 2 4 . . . 1 . . . . . Hunter 5 | . . . . . 3 2 . . . . . . . . . Programmer 1 | . . . . . . . . . . 1 . . . . . Best Kill Streak 16 | . 4 . 5 . 16 5 5 4 . 4 . . . 1 . Combat Bots Only 11 | . 4 . 4 . 11 5 3 4 . 4 . . . 1 . Max Kills in Single Turn 3 | . 1 . 2 . 2 1 3 1 . 1 . . . 1 . Gunslinging . | . . . . . . . . . . . . . . . . Exploded 1 | . . . 1 . 1 . 1 . . . . . . . . Melee . | . . . . . . . . . . . . . . . . Uniques/NPCs Destroyed . | . . . . . . . . . . . . . . . . Combat | -11 -10 -10 -9 -9 -8 -8 -7 -6 -5 -5 -5 -4 -3 -3 -2 -------- Run | Yrd Mat Min Mat Min Mat Sto Fac Fac Fac Ext Cet Fac Res Arm Res Hostile Shots Fired 978 | . 51 . 74 . 114 93 79 49 8 51 . 36 4 277 142 Missed 385 | . 11 . 20 . 28 21 29 18 6 26 . 16 3 150 57 Hits 593 | . 40 . 54 . 86 72 50 31 2 25 . 20 1 127 85 Melee 5 | . . . . . . . . . . . . . . 5 . Projectile 588 | . 40 . 54 . 86 72 50 31 2 25 . 20 1 122 85 AOE 4 | . . . . . . . . . . . . . . 4 . Critical Strikes 20 | . . . . . 2 3 4 . . 1 . 1 . 5 4 Part Disruptions 1 | . . . . . . . 1 . . . . . . . . Damage Taken 10629 | . 489 . 765 . 1133 982 784 402 86 589 . 656 22 2880 1841 Core 4088 | . 144 . 147 . 219 164 222 114 . 182 . 311 . 1116 1469 Absorbed by Shields 165 | . . . . . . . . . . . . . . . 165 Redirected to Shielding 46 | . . . . . . . 46 . . . . . . . . Core Remaining (%) 61 | 100 . 42 . 63 . 30 68 86 . . 81 72 . 14 . Volleys Fired 213 | . 43 . 44 . 33 42 30 7 . 12 . . . 2 . Largest 2 | . 2 . 2 . 2 2 2 2 . 2 . . . 1 . Hottest 143 | . 100 . 105 . 143 136 136 110 . 136 . . . 81 . Shots Fired 379 | . 67 . 66 . 66 84 58 14 . 22 . . . 2 . Gun 174 | . 67 . 44 . 20 4 14 7 . 16 . . . 2 . Cannon 173 | . . . . . 38 80 42 7 . 6 . . . . . Launcher 30 | . . . 22 . 8 . . . . . . . . . . Special 2 | . . . . . . . 2 . . . . . . . . Kinetic . | . . . . . . . . . . . . . . . . Thermal 334 | . 67 . 44 . 58 84 43 14 . 22 . . . 2 . Explosive 30 | . . . 22 . 8 . . . . . . . . . . Electromagnetic 13 | . . . . . . . 13 . . . . . . . . Robot Hit Streak 24 | . 8 . 8 . 10 24 4 9 . 20 . . . 1 . Robot Miss Streak 4 | . 2 . 3 . 4 3 3 2 . 2 . . . 3 . Penetration Max . | . . . . . . . . . . . . . . . . Secondary Targets 1 | . . . 1 . . . . . . . . . . . . Max Gunslinging Chain 1 | . . . 1 . . . . . . . . . . . . Shots Hit Robots 263 | . 46 . 43 . 43 65 33 11 . 21 . . . 1 . Core Hits 142 | . 16 . 32 . 31 24 12 8 . 17 . 1 . 1 . Critical Kills 1 | . . . . . . . . . . 1 . . . . . Critical Parts Destroyed . | . . . . . . . . . . . . . . . . Critical Strikes 6 | . 2 . 1 . . . . . . 2 . . . 1 . Burn 5 | . 2 . 1 . . . . . . 1 . . . 1 . Meltdown 1 | . . . . . . . . . . 1 . . . . . Melee Attacks . | . . . . . . . . . . . . . . . . Impact . | . . . . . . . . . . . . . . . . Slashing . | . . . . . . . . . . . . . . . . Piercing . | . . . . . . . . . . . . . . . . Sneak Attacks . | . . . . . . . . . . . . . . . . Combat Hostiles . | . . . . . . . . . . . . . . . . Follow-up Attacks . | . . . . . . . . . . . . . . . . Damage Inflicted 6708 | . 536 . 1344 . 1873 1360 734 286 . 532 . 20 . 23 . Guns 1868 | . 536 . 389 . 206 67 104 176 . 367 . . . 23 . Cannons 2670 | . . . . . 592 1293 510 110 . 165 . . . . . Explosions 2150 | . . . 955 . 1075 . 120 . . . . . . . . Melee . | . . . . . . . . . . . . . . . . Ramming 20 | . . . . . . . . . . . . 20 . . . Kinetic . | . . . . . . . . . . . . . . . . Thermal 4572 | . 536 . 389 . 798 1360 648 286 . 532 . . . 23 . Explosive 2030 | . . . 955 . 1075 . . . . . . . . . . Electromagnetic 86 | . . . . . . . 86 . . . . . . . . Impact . | . . . . . . . . . . . . . . . . Slashing . | . . . . . . . . . . . . . . . . Piercing . | . . . . . . . . . . . . . . . . Highest Corruption 7 | . . . . . . . 2 . . 1 1 2 . 3 7 Average Corruption 1 | . . . . . . . 1 . . 1 1 2 . 1 4 Corruption Purged . | . . . . . . . . . . . . . . . . Corruption Blocked . | . . . . . . . . . . . . . . . . Effects 11 | . . . . . . . 7 . . 2 . . . 1 1 Message Errors 3 | . . . . . . . 2 . . . . . . 1 . Matter Fused 4 | . . . . . . . 2 . . 1 . . . . 1 Energy Discharges 1 | . . . . . . . . . . 1 . . . . . Data Loss (major) 1 | . . . . . . . 1 . . . . . . . . Misfires 2 | . . . . . . . 2 . . . . . . . . Overload Shots . | . . . . . . . . . . . . . . . . Overflow Damage 98 | . . . 12 . 10 . 54 2 . 20 . . . . . Projectiles 76 | . . . . . . . 54 2 . 20 . . . . . Explosions 22 | . . . 12 . 10 . . . . . . . . . . Melee . | . . . . . . . . . . . . . . . . Knockbacks . | . . . . . . . . . . . . . . . . Impact . | . . . . . . . . . . . . . . . . Kinetic . | . . . . . . . . . . . . . . . . Secondary . | . . . . . . . . . . . . . . . . Self-Inflicted Damage 200 | . . . 68 . 23 . 99 . . . . 10 . . . Shots 8 | . . . 5 . 1 . 2 . . . . . . . . Rammed 2 | . . . . . . . . . . . . 2 . . . Targets Rammed 2 | . . . . . . . . . . . . 2 . . . Kicked . | . . . . . . . . . . . . . . . . Crushed . | . . . . . . . . . . . . . . . . Highest Temperature 567 | . 567 . 471 . 399 294 463 160 2 81 . . . 319 . Average Temperature 124 | . 162 . 145 . 158 77 181 28 2 31 . . . 106 . Received Heat Transfer 1805 | . 216 . 318 . 216 297 45 18 9 99 . . . 527 60 Effects 25 | . 12 . 5 . 1 . 7 . . . . . . . . Shutdowns 6 | . 3 . 2 . . . 1 . . . . . . . . Interference 6 | . . . 3 . . . 3 . . . . . . . . Matter Decay 1 | . . . . . . . 1 . . . . . . . . Short Circuit 4 | . 2 . . . . . 2 . . . . . . . . Damage (minor) 3 | . 2 . . . 1 . . . . . . . . . . Damage (major) 4 | . 4 . . . . . . . . . . . . . . Damage (core) 1 | . 1 . . . . . . . . . . . . . . Siege Activations . | . . . . . . . . . . . . . . . . Martial Activations . | . . . . . . . . . . . . . . . . Shielding Activations . | . . . . . . . . . . . . . . . . Robots Disrupted . | . . . . . . . . . . . . . . . . Combat Hostiles . | . . . . . . . . . . . . . . . . Robots Corrupted . | . . . . . . . . . . . . . . . . Combat Hostiles . | . . . . . . . . . . . . . . . . Parts Fried . | . . . . . . . . . . . . . . . . Impact Corruptions . | . . . . . . . . . . . . . . . . Robots Melted 4 | . . . . . 1 1 . . . 2 . . . . . Combat Hostiles 4 | . . . . . 1 1 . . . 2 . . . . . Parts Melted 25 | . 6 . . . 2 6 . 2 . 8 . . . 1 . Heat Transferred 9244 | . 1586 . 957 . 1443 2479 988 548 . 1132 . . . 111 . Parts Sabotaged . | . . . . . . . . . . . . . . . . Parts Stolen . | . . . . . . . . . . . . . . . . Parts Stripped . | . . . . . . . . . . . . . . . . Power Chain Reactions 2 | . . . . . . . 2 . . . . . . . . Alert | -11 -10 -10 -9 -9 -8 -8 -7 -6 -5 -5 -5 -4 -3 -3 -2 ------- Run | Yrd Mat Min Mat Min Mat Sto Fac Fac Fac Ext Cet Fac Res Arm Res Maximum Alert Level 2 | . . . 1 . 2 1 1 . . 1 . . . 2 1 Low Security (%) 75 | 100 100 100 81 100 67 27 95 100 100 49 100 100 100 63 . Level 1 20 | . . . 18 . 11 72 4 . . 50 . . . 13 100 Level 2 4 | . . . . . 21 . . . . . . . . 22 . Level 3 . | . . . . . . . . . . . . . . . . Level 4 . | . . . . . . . . . . . . . . . . Level 5 . | . . . . . . . . . . . . . . . . High Security . | . . . . . . . . . . . . . . . . Max Security . | . . . . . . . . . . . . . . . . Peak Influence 639 | . 125 18 249 87 457 285 212 65 131 300 112 62 15 639 340 Initial 335 | . . 18 . 87 6 176 86 49 21 60 112 62 . 2 335 Average 120 | . 47 4 87 55 133 220 123 32 54 199 112 7 4 206 316 Influence Increases 4203 | . 221 . 506 . 624 418 441 195 153 530 . 45 15 1010 45 Destroy 0b10 Robot/C 1400 | . 180 . 260 . 280 240 160 80 . 180 . . . 20 . Destroy 0b10 Robot/NC 105 | . . . 40 . 25 20 10 . . 10 . . . . . Destroy Leader 326 | . 40 . 52 . 80 94 20 10 . 30 . . . . . Allied During Kill 15 | . . . 11 . . . . . . 4 . . . . . Successful Hack 66 | . . . 9 . 16 . 32 . 3 6 . . . . . Disable Machine 105 | . . . 30 . 45 . 30 . . . . . . . . Anti-Garrison Action 150 | . . . . . 150 . . . . . . . . . . Destroy Structure 131 | . 1 . 89 . 28 4 9 . . . . . . . . Partial Spotted 345 | . . . . . . 60 45 60 . 60 . 15 15 75 15 Lose Combat Pursuer 1560 | . . . 15 . . . 135 45 150 240 . 30 . 915 30 Influence Decreases 3903 | . 174 47 281 208 222 645 532 251 74 454 88 157 10 376 384 Entered New Map 1112 | . . 29 . 138 11 243 106 52 24 64 88 50 . 3 304 Time Decay 1784 | . 164 18 211 70 150 302 246 170 40 150 . 20 10 193 40 Search Patrol Dispatched 200 | . . . . . . . 100 . . 100 . . . . . Lost Part 665 | . 10 . 50 . 61 100 80 29 10 80 . 25 . 180 40 Lost Ally 80 | . . . 20 . . . . . . 60 . . . . . Purge Threat 62 | . . . . . . . . . . . . 62 . . . Squads Dispatched 23 | . 2 . 2 . 5 4 2 3 . . . . . 5 . Investigation 4 | . . . 1 . . 2 . . . . . . . 1 . Extermination 5 | . . . . . . . 1 2 . . . . . 2 . Reinforcement 11 | . 2 . 1 . 2 2 1 1 . . . . . 2 . Assault 2 | . . . . . 2 . . . . . . . . . . Garrison 1 | . . . . . 1 . . . . . . . . . . Intercept . | . . . . . . . . . . . . . . . . Searches Triggered 2 | . . . . . . . 1 . . 1 . . . . . Construction Impeded 2 | . . . . . 1 1 . . . . . . . . . Haulers Reinforced . | . . . . . . . . . . . . . . . . Active Scanning Responses . | . . . . . . . . . . . . . . . . Cargo Convoy Interrupts . | . . . . . . . . . . . . . . . . Stealth | -11 -10 -10 -9 -9 -8 -8 -7 -6 -5 -5 -5 -4 -3 -3 -2 --------- Run | Yrd Mat Min Mat Min Mat Sto Fac Fac Fac Ext Cet Fac Res Arm Res Distress Signals 24 | . 3 . 3 . 3 . 2 1 1 6 1 . . 4 . Communications Jammed . | . . . . . . . . . . . . . . . . Distress Signals . | . . . . . . . . . . . . . . . . Times Spotted 273 | . 17 . 25 . 21 18 33 13 13 24 4 9 3 70 23 Peak Tracking Total 23 | . 6 . 6 . 6 6 10 7 8 9 5 7 3 16 23 Tactical Retreats 39 | . . . 1 . . . 8 3 2 7 . 2 . 15 1 ECM-based Alert Blocks 10 | . . . . . . . 10 . . . . . . . . Traps | -11 -10 -10 -9 -9 -8 -8 -7 -6 -5 -5 -5 -4 -3 -3 -2 ------- Run | Yrd Mat Min Mat Min Mat Sto Fac Fac Fac Ext Cet Fac Res Arm Res Traps Triggered 12 | . 1 . 1 . 1 3 1 1 . 1 . . . 1 2 Indirectly . | . . . . . . . . . . . . . . . . Trap Hack Attempts . | . . . . . . . . . . . . . . . . Triggered . | . . . . . . . . . . . . . . . . Disarmed . | . . . . . . . . . . . . . . . . Reprogrammed . | . . . . . . . . . . . . . . . . Reused . | . . . . . . . . . . . . . . . . Traps Extracted . | . . . . . . . . . . . . . . . . Installed . | . . . . . . . . . . . . . . . . Triggered . | . . . . . . . . . . . . . . . . Machines | -11 -10 -10 -9 -9 -8 -8 -7 -6 -5 -5 -5 -4 -3 -3 -2 ---------- Run | Yrd Mat Min Mat Min Mat Sto Fac Fac Fac Ext Cet Fac Res Arm Res Machines Disabled 9 | . . . 3 . 4 . 2 . . . . . . . . Max in Single Turn 2 | . . . 1 . 1 . 2 . . . . . . . . Garrison Access 1 | . . . . . 1 . . . . . . . . . . Energy Cycler 1 | . . . . . . . . . . . . . . 1 . Machines Repaired . | . . . . . . . . . . . . . . . . Machines Dismantled . | . . . . . . . . . . . . . . . . Machines Sabotaged . | . . . . . . . . . . . . . . . . Overloaded Fab Kills . | . . . . . . . . . . . . . . . . Hacking | -11 -10 -10 -9 -9 -8 -8 -7 -6 -5 -5 -5 -4 -3 -3 -2 --------- Run | Yrd Mat Min Mat Min Mat Sto Fac Fac Fac Ext Cet Fac Res Arm Res Machines Accessed 17 | . . . 2 . 2 1 4 . 1 4 . 1 . 2 . Terminals 17 | . . . 2 . 2 1 4 . 1 4 . 1 . 2 . Fabricators . | . . . . . . . . . . . . . . . . Repair Stations . | . . . . . . . . . . . . . . . . Recycling Units . | . . . . . . . . . . . . . . . . Scanalyzers . | . . . . . . . . . . . . . . . . Garrison Access . | . . . . . . . . . . . . . . . . Total Hacks 33 | . . . 2 . 4 2 8 . 1 8 . 4 . 4 . Successful 9 | . . . 1 . 1 . 2 . 1 3 . 1 . . . Failed 24 | . . . 1 . 3 2 6 . . 5 . 3 . 4 . Catastrophic 7 | . . . . . . 1 2 . . 2 . 1 . 1 . Database Lockouts . | . . . . . . . . . . . . . . . . Manual 8 | . . . 1 . 1 . 4 . . 1 . 1 . . . Terminals 33 | . . . 2 . 4 2 8 . 1 8 . 4 . 4 . Fabricators . | . . . . . . . . . . . . . . . . Repair Stations . | . . . . . . . . . . . . . . . . Recycling Units . | . . . . . . . . . . . . . . . . Scanalyzers . | . . . . . . . . . . . . . . . . Garrison Access . | . . . . . . . . . . . . . . . . Terminal Hacks 9 | . . . 1 . 1 . 2 . 1 3 . 1 . . . Open Door 4 | . . . . . . . . . 1 3 . . . . . Open DSF 1 | . . . . . . . 1 . . . . . . . . Level Access Points 1 | . . . 1 . . . . . . . . . . . . Branch Access Points 1 | . . . . . 1 . . . . . . . . . . Unreport Threat 1 | . . . . . . . . . . . . 1 . . . Recall Investigation 1 | . . . . . . . 1 . . . . . . . . Fabricator Hacks . | . . . . . . . . . . . . . . . . Repair Station Hacks . | . . . . . . . . . . . . . . . . Recycling Unit Hacks . | . . . . . . . . . . . . . . . . Scanalyzer . | . . . . . . . . . . . . . . . . Garrison Access Hacks . | . . . . . . . . . . . . . . . . Unauthorized Hacks . | . . . . . . . . . . . . . . . . Terminals . | . . . . . . . . . . . . . . . . Fabricators . | . . . . . . . . . . . . . . . . Repair Stations . | . . . . . . . . . . . . . . . . Recycling Units . | . . . . . . . . . . . . . . . . Scanalyzers . | . . . . . . . . . . . . . . . . Garrison Access . | . . . . . . . . . . . . . . . . Data Cores Recovered 3 | . . . 1 . . 1 . . . 1 . . . . . Used . | . . . . . . . . . . . . . . . . Hacking Detections 15 | . . . 1 . 2 1 4 . . 4 . 1 . 2 . Full Trace Events 2 | . . . . . . 1 . . . . . . . 1 . Feedback Events 1 | . . . . . . . . . . . . . . 1 . Hackware Fried 1 | . . . . . . . . . . . . . . 1 . Feedback Blocked 1 | . . . . . . . . . . . . . . 1 . Robot Schematics Acquired . | . . . . . . . . . . . . . . . . Robots Built . | . . . . . . . . . . . . . . . . Authchips . | . . . . . . . . . . . . . . . . Time . | . . . . . . . . . . . . . . . . Total Robot Build Rating . | . . . . . . . . . . . . . . . . Part Schematics Acquired . | . . . . . . . . . . . . . . . . Parts Built . | . . . . . . . . . . . . . . . . Authchips . | . . . . . . . . . . . . . . . . Time . | . . . . . . . . . . . . . . . . Total Part Build Rating . | . . . . . . . . . . . . . . . . Part Studies Acquired . | . . . . . . . . . . . . . . . . Parts Repaired . | . . . . . . . . . . . . . . . . Time . | . . . . . . . . . . . . . . . . Parts Recycled . | . . . . . . . . . . . . . . . . Recycled Matter . | . . . . . . . . . . . . . . . . Retrieved Matter . | . . . . . . . . . . . . . . . . Retrieved Components . | . . . . . . . . . . . . . . . . Parts Scanalyzed . | . . . . . . . . . . . . . . . . Part Schematics Acquired . | . . . . . . . . . . . . . . . . Parts Damaged . | . . . . . . . . . . . . . . . . Bothacking | -11 -10 -10 -9 -9 -8 -8 -7 -6 -5 -5 -5 -4 -3 -3 -2 ------------ Run | Yrd Mat Min Mat Min Mat Sto Fac Fac Fac Ext Cet Fac Res Arm Res Used RIF Installer . | . . . . . . . . . . . . . . . . Robots Hacked 1 | . . . . . . . 1 . . . . . . . . Non-combat . | . . . . . . . . . . . . . . . . Combat 1 | . . . . . . . 1 . . . . . . . . Robot Hacks Applied 1 | . . . . . . . 1 . . . . . . . . parse_system 1 | . . . . . . . 1 . . . . . . . . Relay Couplers Released 2 | . . . . . 2 . . . . . . . . . . Machine Destruction 2 | . . . . . 2 . . . . . . . . . . Fabnet Peak Effective % . | . . . . . . . . . . . . . . . . Robots Rewired . | . . . . . . . . . . . . . . . . Allies Hacked . | . . . . . . . . . . . . . . . . Hacks Repelled . | . . . . . . . . . . . . . . . . Allies | -11 -10 -10 -9 -9 -8 -8 -7 -6 -5 -5 -5 -4 -3 -3 -2 -------- Run | Yrd Mat Min Mat Min Mat Sto Fac Fac Fac Ext Cet Fac Res Arm Res Total Allies 7 | . . 3 . . . . . . . 4 . . . . . Largest Group 3 | . . 3 3 . . . . . . 2 . . . . . Highest-Rated Group 159 | . . 40 40 . . . . . . 159 . . . . . Highest-Rated Ally 159 | . . 16 16 . . . . . . 159 . . . . . Total Orders . | . . . . . . . . . . . . . . . . Ally Attacks 46 | . . . 31 . . . . . . 15 . . . . . Total Damage 659 | . . . 301 . . . . . . 358 . . . . . Kills 8 | . . . 6 . . . . . . 2 . . . . . Allies Corrupted . | . . . . . . . . . . . . . . . . Allies Melted . | . . . . . . . . . . . . . . . . Intel | -11 -10 -10 -9 -9 -8 -8 -7 -6 -5 -5 -5 -4 -3 -3 -2 ------- Run | Yrd Mat Min Mat Min Mat Sto Fac Fac Fac Ext Cet Fac Res Arm Res Active Infowar (turns) 2172 | . 583 120 274 . 89 283 240 281 99 74 13 116 . . . Sensors 1459 | . 583 120 274 . 89 . 123 270 . . . . . . . Terrain 146 | . . . . . . . . 11 99 36 . . . . . Traps 167 | . . . . . . . . . . 38 13 116 . . . ECM 475 | . . . . . 4 283 157 31 . . . . . . . Robot Analysis Total . | . . . . . . . . . . . . . . . . Derelict Logs Recovered 1 | . . . . 1 . . . . . . . . . . . Drone Launches . | . . . . . . . . . . . . . . . . Drone Recoveries . | . . . . . . . . . . . . . . . . Exploration | -11 -10 -10 -9 -9 -8 -8 -7 -6 -5 -5 -5 -4 -3 -3 -2 ------------- Run | Yrd Mat Min Mat Min Mat Sto Fac Fac Fac Ext Cet Fac Res Arm Res Turns Passed 4527 | 57 642 120 464 143 408 661 522 350 99 317 13 133 76 434 88 Spaces Moved 5807 | 40 333 85 252 117 214 402 931 888 270 696 54 250 165 940 170 Core 46 | 8 . . . . . . . . . . . 4 8 4 22 Treads . | . . . . . . . . . . . . . . . . Legs 1184 | 32 333 85 252 117 214 151 . . . . . . . . . Wheels . | . . . . . . . . . . . . . . . . Hover . | . . . . . . . . . . . . . . . . Flight 4577 | . . . . . . 251 931 888 270 696 54 246 157 936 148 Fastest Speed 23 | 50 120 120 120 120 90 26 26 23 23 23 23 23 35 29 39 Average Speed 46 | 106 120 120 120 120 114 59 26 23 23 24 23 25 38 33 42 Slowest Speed 345 | 120 120 120 120 120 180 345 26 26 23 101 23 175 50 150 125 Overloaded Moves . | . . . . . . . . . . . . . . . . Propulsion Burnouts . | . . . . . . . . . . . . . . . . Robots Hopped 99 | . . . . . . 14 26 6 11 6 . 5 2 26 3 Potential Cave-ins . | . . . . . . . . . . . . . . . . Cave-ins Triggered . | . . . . . . . . . . . . . . . . Exploration Rate (%) 31 | 4 50 15 28 48 31 57 28 29 8 83 23 14 6 63 9 Regions Visited 15 Branch Regions 6 Pre-discovered Areas . | . . . . . . . . . . . . . . . . Known Exits Taken 2 | . . . . 1 1 . . . . . . . . . . Unknown Exits Taken 13 | 1 1 1 1 . . 1 1 1 1 1 1 1 1 1 . Scrap Searched . | . . . . . . . . . . . . . . . . Spaces Dug . | . . . . . . . . . . . . . . . . Terrain Destroyed 129 | . . . 96 . 26 . 7 . . . . . . . . Melee . | . . . . . . . . . . . . . . . . Projectile 2 | . . . . . 2 . . . . . . . . . . AOE 127 | . . . 96 . 24 . 7 . . . . . . . . Terrain Rammed . | . . . . . . . . . . . . . . . . Walls Destroyed . | . . . . . . . . . . . . . . . . Machines Disabled . | . . . . . . . . . . . . . . . . Actions | -11 -10 -10 -9 -9 -8 -8 -7 -6 -5 -5 -5 -4 -3 -3 -2 --------- Run | Yrd Mat Min Mat Min Mat Sto Fac Fac Fac Ext Cet Fac Res Arm Res Total 7171 | 54 509 103 348 119 309 722 1129 1011 295 814 53 314 175 1032 184 Wait 933 | 2 102 19 28 2 29 254 138 97 32 78 . 59 . 90 3 Move 5611 | 39 332 84 251 116 213 374 882 875 251 685 53 240 160 892 164 Hop 83 | . . . . . . 13 22 6 7 4 . 5 2 21 3 Pick Up 116 | 7 15 . 13 1 12 13 12 4 3 11 . 3 5 13 4 Fast Attach 11 | . . . . . . 4 7 . . . . . . . . Attach 89 | 6 5 . 7 . 10 9 9 5 2 11 . 4 7 11 3 Detach 3 | . . . . . . . . . . 1 . 1 . . 1 Swap 27 | . 5 . 2 . 9 5 4 1 . . . . . 1 . Drop 38 | . 7 . 3 . 3 8 10 1 . 1 . 1 1 2 1 Fire 213 | . 43 . 44 . 33 42 30 7 . 12 . . . 2 . Melee . | . . . . . . . . . . . . . . . . Ram 1 | . . . . . . . . . . . . 1 . . . Kick . | . . . . . . . . . . . . . . . . Crush . | . . . . . . . . . . . . . . . . Escape Stasis 46 | . . . . . . . 15 15 . 11 . . . . 5 Rewire . | . . . . . . . . . . . . . . . . Trap . | . . . . . . . . . . . . . . . . Miscellaneous . | . . . . . . . . . . . . . . . . Route ------- -11/Scrapyard -10/Materials -10/Mines -9/Materials (discovered 4 exits: Mat x3 / [*Min]) -9/Mines -8/Materials -8/Storage -7/Factory -6/Factory -5/Factory -5/Extension (discovered 2 exits: *Fac / [*Cet]) -5/Cetus -4/Factory -3/Research -3/Armory -2/Research History --------- Turn | Location | Event 7 | -11/Scrapyard | Discovered new exit (range 15) 58 | -11/Scrapyard | Entered Materials 308 | -10/Materials | Build established: Mutant 512 | -10/Materials | Core integrity fell below 50% 595 | -10/Materials | Discovered new exit (range 15) 700 | -10/Materials | Entered Mines 704 | -10/Mines | Assisted by bots powering up and referring to "LRC-V3" 712 | -10/Mines | Discovered new exit (range 9) 820 | -10/Mines | Entered Materials 820 | -9/Materials | Accompanied by 3 allies 820 | -9/Materials | Evolved 2 slots: Propulsion x2 831 | -9/Materials | Identified exit to Materials 1130 | -9/Materials | Build established: Scavenger-Mutant 1163 | -9/Materials | Lost 3 parts (1n2w) 1183 | -9/Materials | Discovered new exit (range 8) 1284 | -9/Materials | Entered Mines 1324 | -9/Mines | Met a Derelict bent on vengeance 1354 | -9/Mines | Learned location of 1 exit from Materials 1409 | -9/Mines | Found a hidden stash of uninstalled traps 1411 | -9/Mines | Discovered exit to Materials (range 9) 1418 | -9/Mines | Received a Rocket Launcher from a helpful Derelict 1427 | -9/Mines | Entered Materials 1427 | -8/Materials | Evolved 2 slots: Utility x2 1428 | -8/Materials | Identified exit to Storage 1685 | -8/Materials | Garrison activated, responded to threat 1767 | -8/Materials | Lost 5 parts (2p1n2w) 1773 | -8/Materials | Destroyed 11 combat bots 1835 | -8/Materials | Entered Storage 1901 | -8/Storage | Build established: Mutant 1936 | -8/Storage | Core integrity fell below 50% 1992 | -8/Storage | Lost 5 parts (2n1u2w) 2082 | -8/Storage | Lost 3 parts (1p2n) 2494 | -8/Storage | Discovered new exit (range 5) 2496 | -8/Storage | Entered Factory 2496 | -7/Factory | Evolved 2 slots: Utility x2 2525 | -7/Factory | Build established: Sprinter 2661 | -7/Factory | Lost 5 parts (2p2u1w) 2896 | -7/Factory | Search patrols dispatched 3017 | -7/Factory | Discovered new exit (range 4) 3018 | -7/Factory | Entered another Factory area 3018 | -6/Factory | Evolved 2 slots: Propulsion x1, Utility x1 3325 | -6/Factory | Lost 3 parts (1p1n1u) 3359 | -6/Factory | Discovered new exit (range 12) 3368 | -6/Factory | Entered another Factory area 3368 | -5/Factory | Evolved 2 slots: Utility x2 3401 | -5/Factory | Discovered new exit (range 17) 3446 | -5/Factory | Spotted B-75 Beast 3467 | -5/Factory | Entered Extension 3499 | -5/Extension | Spotted B-75 Beast 3502 | -5/Extension | Spotted B-75 Beast 3523 | -5/Extension | Rescued a captive Derelict 3547 | -5/Extension | Rescued a captive Derelict 3549 | -5/Extension | Rescued a captive Derelict 3674 | -5/Extension | Rescued A7 3678 | -5/Extension | Build established: Hacker-Sprinter 3720 | -5/Extension | Lost 3 parts (1n1u1w) 3732 | -5/Extension | Discovered new exit (range 10) 3732 | -5/Extension | Discovered new exit (range 6) 3767 | -5/Extension | Search patrols dispatched 3784 | -5/Extension | Entered Cetus 3788 | -5/Cetus | Spotted Cetus Guard 3788 | -5/Cetus | Spotted Cetus Guard 3788 | -5/Cetus | Spotted Cetus Guard 3793 | -5/Cetus | Discovered new exit (range 16) 3797 | -5/Cetus | Entered Factory 3797 | -4/Factory | Evolved 2 slots: Propulsion x1, Utility x1 3912 | -4/Factory | Discovered new exit (range 15) 3930 | -4/Factory | Entered Research 3930 | -3/Research | Evolved 2 slots: Utility x2 3960 | -3/Research | Lost 11 parts (1p6n3u1w) 3972 | -3/Research | Spotted B-86 Titan 4002 | -3/Research | Discovered new exit (range 9) 4006 | -3/Research | Entered Armory 4129 | -3/Armory | System Shield fried by hacking feedback 4263 | -3/Armory | Energy Cycler disabled 4310 | -3/Armory | Lost 7 parts (2p3n1u1w) 4321 | -3/Armory | Core integrity fell below 50% 4337 | -3/Armory | Spotted B-86 Titan 4343 | -3/Armory | Spotted Armor Guard 4369 | -3/Armory | Lost 6 parts (1p2n3u) 4374 | -3/Armory | Spotted Armor Guard 4398 | -3/Armory | Core integrity fell below 20% 4428 | -3/Armory | Lost 4 parts (2n1u1w) 4438 | -3/Armory | Discovered new exit (range 4) 4440 | -3/Armory | Entered Research 4440 | -2/Research | Evolved 2 slots: Power x1, Propulsion x1 4511 | -2/Research | Spotted B-90 Cyclops 4520 | -2/Research | Core integrity fell below 50% 4524 | -2/Research | Core integrity fell below 20% 4528 | -2/Research | Destroyed by H-88 Terminator with KE Penetrator Last Messages --------------- corruption cleaned. Stasis field depleted. B-90 Cyclops activates siege mode. Acquired 25 matter. K-01 Serf collects debris. Penetrated by Slug. K-01 Serf destroyed. Triggered Stasis Trap. A bubble of rippling energy engulfs the area. Field strength at 94. S-43 Plague destroyed. P-80 Master resets S-43 Plague, system corruption cleaned. Field strength at 60. S-43 Plague destroyed. Field strength at 37. Field strength at 19. Stasis field depleted. Slug penetrates Wall. [Achievement: Just Browsing] Map ----- +----------------------------------------------------+ | ?????????????????????????????????????????????????? | | ?????????????????????????????????????????????????? | | ?????????????????????????????????????????????????? | | ?????????????????????????????????????????????????? | | ?????????????????????????????????????????????????? | | ???????????????????????????? ????????????????????? | | ???????????????????????????? ????????????????????? | | ???????????????????????????? ????????????????????? | | ???????????????????????????? ????????????????????? | | ???????????????????????????? ????????????????????? | | ???????????????????????????? ?????#+####?????????? | | ???????????????????????????? ?????# #?????????? | | ???????????????????????????# #????# #?????????? | | ???????????????????????????# #????# #?????????? | | ???????????????????????????# #??? # #?????????? | | ???????????????????????????# #??? # #?????????? | | ???????????????????????????# #?? # #?????????? | | ???????????????????????????# #?? + #?????????? | | ???????????????????????????#h#? # #?????????? | | ??????????????????????###### ##;### #?????????? | | ??????????????????????# ; ! = %! #?????????? | | ??????????????????????##; * ^! #?????????? | | ???????????????????????## s s[ ###???????? | | ????????????????????????# s *% BB#???????? | | ????????????????????????# [ s BB#???????? | | ????????????????????????#@ %!%ss s ;##???????? | | ????????????????????????# *s " " p#########+# | | ????????????????????????# ""G"" | | ??????????????????????? + p | | ????????????????????? # | | ????????????????????? ?+ " | | ????????????????????? ??# ######+########## " | | ????????????????????????# #???????????????# " | | ????????????????????????# %#???????????????#"!*" | | ????????????????????????# #???????????????#% % | | ????????????????????????# #???????????????#" ! | | ????????????????????????? #???????????????# | | ????????????????????????? #???????????????# | | ????????????????????????? #???????????????# | | ????????????????????????? #???????????????# | | ????????????????????????? ?????????????????# | | ?????????????????????????????????????????????# | | ?????????????????????????????????????????????# | | ?????????????????????????????????????????????# | | ????????????????????????????????????########## | | ????????????????????????#???????????# ! # | | ????????????????????????# ???????#+## # | | ????????????????????????# ??????# ## """" # | | ????????????????????????# ?????# ## """" # | | ????????????????????????# ##### ## """" # | +----------------------------------------------------+ Best States ------------- Heat Dissipation 73 Energy Generation 23 Energy Capacity 325 Matter Stores 300 Matter Capacity 300 Sight Range 16 Robot Scan Range 15 Terrain Scan Range 20 Terrain Scan Density 410 ECM Strength 1 Utility Shielding 66 Point Defense Rating 240 Evasion (%) 70 Targeting Accuracy 11 Melee Accuracy 6 Core Analysis 6 Offensive Hacking 42 Defensive Hacking 10 Item Schematics ----------------- None Robot Schematics ------------------ None Fabricated ------------ Nothing Repaired ---------- Nothing Studied --------- None Alien Tech Used ----------------- None Achievements -------------- Can't Catch Me Just Browsing Oh No You Don't! Omniscient Cartographer Prison Break Suspicious Challenges ------------ None Game ------ Seed ExpertArmorMatrix Manual? 0 Play Time 01:47:52 Cumulative 23.9 hours Start 2025.12.20 @ 11:20:53 End 2025.12.20 @ 13:57:03 Sessions 1 Manual Loads 0 Difficulty Rogue Special Mode None Game No. 42 Rogue 41 Adventurer 1 Explorer 0 Win Type - Total 0 Types 0/0/0/0/0/0/0/0/0/0 Lore% 6 Gallery% 25 Achievement% 18 Wizard Run 0 Options --------- Layout 1 ASCII 0 Keyboard 0 Movement Arrows Keybinds 0 Fullscreen 1 Font 24/Smallcaps Map View 50x35 Zoom Use 0% Tactical HUD 0 Map Filters NONE Filters NONE Steam 1 RUN: 72d73394-e0a3-4f88-94eb-d8f100f3a622